[Event "*** Qualifier 3: Titled Tuesday 3|2 Blitz"]
[Site "Chess.com"]
[Date "2017.04.18"]
[Round "8"]
[White "Jamaladam12200620"]
[Black "Grootneus"]
[Result "1-0"]
[WhiteElo "1996"]
[BlackElo "2091"]
[TimeControl "180+2"]
[EndTime "14:46:23 PDT"]
[Termination "Jamaladam12200620 won by resignation"]

1. e4 {[%clk 0:03:00]} 1... d6 {[%clk 0:02:59.2]} 2. d4 {[%clk 0:03:00.6]} 2...
g6 {[%clk 0:02:57.3]} 3. Nf3 {[%clk 0:03:00.8]} 3... Bg7 {[%clk 0:02:57.1]} 4.
Nc3 {[%clk 0:03:01.6]} 4... a6 {[%clk 0:02:57.2]} 5. Be3 {[%clk 0:03:02.6]} 5...
b5 {[%clk 0:02:58.1]} 6. Be2 {[%clk 0:03:03.2]} 6... Bb7 {[%clk 0:02:59.2]} 7.
O-O {[%clk 0:02:57.8]} 7... Nf6 {[%clk 0:02:48.5]} 8. e5 {[%clk 0:02:56.1]} 8...
dxe5 {[%clk 0:02:24]} 9. Nxe5 {[%clk 0:02:54.8]} 9... O-O {[%clk 0:02:20.7]} 10.
Bf3 {[%clk 0:02:54.1]} 10... Nd5 {[%clk 0:02:03.9]} 11. Nxd5 {[%clk 0:02:48.9]}
11... Bxd5 {[%clk 0:02:05.8]} 12. b3 {[%clk 0:02:48]} 12... b4 {[%clk
0:01:37.8]} 13. a3 {[%clk 0:02:45.5]} 13... c5 {[%clk 0:01:31.6]} 14. dxc5
{[%clk 0:02:37]} 14... Bxe5 {[%clk 0:00:37.6]} 15. Qxd5 {[%clk 0:02:36.9]} 15...
Qxd5 {[%clk 0:00:38.1]} 16. Bxd5 {[%clk 0:02:37.5]} 16... Ra7 {[%clk 0:00:39.3]}
17. axb4 {[%clk 0:02:08.2]} 17... Bxa1 {[%clk 0:00:39.3]} 18. Rxa1 {[%clk
0:02:08.2]} 18... Rd7 {[%clk 0:00:39.7]} 19. Bf3 {[%clk 0:02:02.2]} 19... Rc8
{[%clk 0:00:17.9]} 20. Kf1 {[%clk 0:01:57.6]} 20... f5 {[%clk 0:00:18.8]} 21.
Ke2 {[%clk 0:01:54.6]} 21... e5 {[%clk 0:00:20.2]} 22. g4 {[%clk 0:01:47.8]}
22... f4 {[%clk 0:00:19.6]} 23. Bd2 {[%clk 0:01:44.9]} 23... Nc6 {[%clk
0:00:20.9]} 24. Bc3 {[%clk 0:01:44.6]} 24... Nd4+ {[%clk 0:00:13]} 25. Bxd4
{[%clk 0:01:45.2]} 25... Rxd4 {[%clk 0:00:14.9]} 26. c3 {[%clk 0:01:43]} 26...
Rd7 {[%clk 0:00:10.3]} 27. Rxa6 {[%clk 0:01:43.8]} 27... Rcd8 {[%clk 0:00:12]}
28. c6 {[%clk 0:01:39.8]} 28... Rd2+ {[%clk 0:00:13]} 29. Kf1 {[%clk 0:01:40.1]}
29... Rc2 {[%clk 0:00:14.4]} 30. c4 {[%clk 0:01:39.5]} 30... Rdd2 {[%clk
0:00:14.8]} 31. Bd5+ {[%clk 0:01:37.4]} 31... Kg7 {[%clk 0:00:15.4]} 32. c7
{[%clk 0:01:37.2]} 32... Rxf2+ {[%clk 0:00:16.6]} 33. Kg1 {[%clk 0:01:36.8]}
33... Rfd2 {[%clk 0:00:17.5]} 34. Ra1 {[%clk 0:01:31.7]} 34... e4 {[%clk
0:00:10.6]} 35. Bxe4 {[%clk 0:01:27]} 35... f3 {[%clk 0:00:05.4]} 36. Bxc2
{[%clk 0:01:25.8]} 1-0

[Event "*** Qualifier 3: Titled Tuesday 3|2 Blitz"]
[Site "Chess.com"]
[Date "2017.04.18"]
[Round "8"]
[White "maciek_92"]
[Black "Grebeniuk-S"]
[Result "0-1"]
[WhiteElo "2529"]
[BlackElo "2428"]
[TimeControl "180+2"]
[EndTime "14:46:25 PDT"]
[Termination "Grebeniuk-S won by resignation"]

1. c4 {[%clk 0:03:02]} 1... f5 {[%clk 0:02:56.2]} 2. Nc3 {[%clk 0:03:01.7]} 2...
Nf6 {[%clk 0:02:57.6]} 3. g3 {[%clk 0:02:59.1]} 3... g6 {[%clk 0:02:58.9]} 4.
Bg2 {[%clk 0:03:01]} 4... Bg7 {[%clk 0:03:00.4]} 5. d4 {[%clk 0:03:01.9]} 5...
d6 {[%clk 0:03:01.2]} 6. Nf3 {[%clk 0:03:03.4]} 6... O-O {[%clk 0:03:02.7]} 7.
O-O {[%clk 0:03:05]} 7... Qe8 {[%clk 0:03:03.8]} 8. Re1 {[%clk 0:02:59.9]} 8...
Qf7 {[%clk 0:03:04.6]} 9. d5 {[%clk 0:03:00.1]} 9... Ne4 {[%clk 0:03:03.6]} 10.
Qc2 {[%clk 0:02:48.9]} 10... Nxc3 {[%clk 0:02:50.4]} 11. bxc3 {[%clk 0:02:48.8]}
11... Na6 {[%clk 0:02:51.3]} 12. Be3 {[%clk 0:02:44.2]} 12... h6 {[%clk
0:02:33.3]} 13. Bd4 {[%clk 0:02:44.1]} 13... e5 {[%clk 0:02:17.7]} 14. dxe6
{[%clk 0:02:27.8]} 14... Bxe6 {[%clk 0:02:18.8]} 15. Bxg7 {[%clk 0:02:26.1]}
15... Kxg7 {[%clk 0:02:20.7]} 16. e4 {[%clk 0:02:26.8]} 16... Nc5 {[%clk
0:02:07.4]} 17. Nd4 {[%clk 0:02:20.2]} 17... Bxc4 {[%clk 0:01:57.4]} 18. exf5
{[%clk 0:02:19.9]} 18... Bd3 {[%clk 0:01:46.1]} 19. Qb2 {[%clk 0:02:14.9]} 19...
Bxf5 {[%clk 0:01:45.5]} 20. c4 {[%clk 0:02:16.3]} 20... Kh7 {[%clk 0:01:25.5]}
21. Nxf5 {[%clk 0:01:56.6]} 21... Qxf5 {[%clk 0:01:22.4]} 22. Re7+ {[%clk
0:01:57.8]} 22... Rf7 {[%clk 0:01:22.8]} 23. Rae1 {[%clk 0:01:59.4]} 23... Nd3
{[%clk 0:00:44.9]} 24. Bh3 {[%clk 0:01:18.9]} 24... Nxb2 {[%clk 0:00:20.2]} 25.
Bxf5 {[%clk 0:01:18.7]} 25... Rf8 {[%clk 0:00:21.7]} 26. Bc8 {[%clk 0:01:09]}
26... Kg7 {[%clk 0:00:15.2]} 27. Bxb7 {[%clk 0:01:03.6]} 27... Rxe7 {[%clk
0:00:14.7]} 28. Rxe7+ {[%clk 0:01:03.9]} 28... Rf7 {[%clk 0:00:16.6]} 29. Re4
{[%clk 0:01:02]} 29... Nd3 {[%clk 0:00:16.6]} 30. f4 {[%clk 0:01:01.9]} 30...
Nc5 {[%clk 0:00:17.6]} 31. Bd5 {[%clk 0:00:57.6]} 31... Nxe4 {[%clk 0:00:17.9]}
32. Bxe4 {[%clk 0:00:59.5]} 32... Re7 {[%clk 0:00:19]} 33. Bf3 {[%clk
0:01:01.4]} 33... Re3 {[%clk 0:00:19.8]} 34. Kf2 {[%clk 0:00:54.9]} 34... Ra3
{[%clk 0:00:20.9]} 0-1

[Event "*** Qualifier 3: Titled Tuesday 3|2 Blitz"]
[Site "Chess.com"]
[Date "2017.04.18"]
[Round "8"]
[White "proxy6"]
[Black "Lupul_Cenusiu"]
[Result "1-0"]
[WhiteElo "2224"]
[BlackElo "2449"]
[TimeControl "180+2"]
[EndTime "14:46:27 PDT"]
[Termination "proxy6 won by resignation"]

1. e4 {[%clk 0:03:02]} 1... d6 {[%clk 0:03:00]} 2. d4 {[%clk 0:03:02.6]} 2... g6
{[%clk 0:03:01.3]} 3. Nc3 {[%clk 0:03:02.2]} 3... Bg7 {[%clk 0:03:02.5]} 4. Be3
{[%clk 0:03:03]} 4... a6 {[%clk 0:03:02.8]} 5. Qd2 {[%clk 0:03:03.6]} 5... b5
{[%clk 0:03:03.8]} 6. O-O-O {[%clk 0:03:02.8]} 6... Nd7 {[%clk 0:03:01.2]} 7. g4
{[%clk 0:02:46.4]} 7... Nb6 {[%clk 0:03:00.8]} 8. f3 {[%clk 0:02:45.9]} 8... Bb7
{[%clk 0:02:57.6]} 9. h4 {[%clk 0:02:45.8]} 9... h5 {[%clk 0:02:56.1]} 10. g5
{[%clk 0:02:37]} 10... e6 {[%clk 0:02:53]} 11. Nh3 {[%clk 0:02:34]} 11... Ne7
{[%clk 0:02:52.3]} 12. Bd3 {[%clk 0:02:31.5]} 12... Qd7 {[%clk 0:02:52.1]} 13.
f4 {[%clk 0:02:26.1]} 13... b4 {[%clk 0:02:52.3]} 14. Ne2 {[%clk 0:02:25]} 14...
a5 {[%clk 0:02:52.4]} 15. Rhf1 {[%clk 0:02:20.1]} 15... d5 {[%clk 0:02:48.1]}
16. Ng3 {[%clk 0:02:15.4]} 16... dxe4 {[%clk 0:02:36.9]} 17. Bxe4 {[%clk
0:02:11.5]} 17... Bxe4 {[%clk 0:02:30]} 18. Nxe4 {[%clk 0:02:13.4]} 18... Qd5
{[%clk 0:02:31.1]} 19. Qd3 {[%clk 0:01:13.2]} 19... Qxa2 {[%clk 0:02:26.7]} 20.
Qb3 {[%clk 0:00:38.1]} 20... Qxb3 {[%clk 0:02:20.5]} 21. cxb3 {[%clk 0:00:40]}
21... a4 {[%clk 0:02:18.7]} 22. bxa4 {[%clk 0:00:39]} 22... Rxa4 {[%clk
0:02:12]} 23. Kc2 {[%clk 0:00:39.7]} 23... Ned5 {[%clk 0:02:12]} 24. Bf2 {[%clk
0:00:39.1]} 24... O-O {[%clk 0:02:10.2]} 25. Nc5 {[%clk 0:00:31.6]} 25... Ra5
{[%clk 0:02:06.4]} 26. Ra1 {[%clk 0:00:29.8]} 26... Rfa8 {[%clk 0:02:05.8]} 27.
Nb3 {[%clk 0:00:22.3]} 27... Rxa1 {[%clk 0:02:05.1]} 28. Rxa1 {[%clk 0:00:24.2]}
28... Rxa1 {[%clk 0:02:05.5]} 29. Nxa1 {[%clk 0:00:26.1]} 29... Nc4 {[%clk
0:02:05.2]} 30. Nb3 {[%clk 0:00:24.9]} 30... Nd6 {[%clk 0:01:59.9]} 31. Kd3
{[%clk 0:00:23.5]} 31... Kf8 {[%clk 0:01:59.2]} 32. Nd2 {[%clk 0:00:17.5]} 32...
Ke8 {[%clk 0:01:59.7]} 33. Nc4 {[%clk 0:00:17.3]} 33... Nxc4 {[%clk 0:01:55.2]}
34. Kxc4 {[%clk 0:00:18.3]} 34... Kd7 {[%clk 0:01:53.9]} 35. Be1 {[%clk
0:00:17.2]} 35... Bf8 {[%clk 0:01:55.1]} 36. Bd2 {[%clk 0:00:17.7]} 36... Bd6
{[%clk 0:01:55.9]} 37. Kd3 {[%clk 0:00:17.1]} 37... Kc6 {[%clk 0:01:55.4]} 38.
b3 {[%clk 0:00:16.7]} 38... Kb5 {[%clk 0:01:55.9]} 39. Ke4 {[%clk 0:00:16.7]}
39... c5 {[%clk 0:01:55.6]} 40. dxc5 {[%clk 0:00:10.9]} 40... Bxc5 {[%clk
0:01:56.7]} 41. Ke5 {[%clk 0:00:05.8]} 41... Bf2 {[%clk 0:01:53.5]} 42. Nxf2
{[%clk 0:00:06]} 42... Kc6 {[%clk 0:01:50.1]} 43. Ne4 {[%clk 0:00:06.7]} 43...
Kd7 {[%clk 0:01:50.9]} 44. Nf6+ {[%clk 0:00:07.6]} 1-0

[Event "*** Qualifier 3: Titled Tuesday 3|2 Blitz"]
[Site "Chess.com"]
[Date "2017.04.18"]
[Round "8"]
[White "aa175"]
[Black "chesstatour"]
[Result "0-1"]
[WhiteElo "1823"]
[BlackElo "1958"]
[TimeControl "180+2"]
[EndTime "14:46:33 PDT"]
[Termination "chesstatour won by checkmate"]

1. e4 {[%clk 0:03:02]} 1... c6 {[%clk 0:03:00.9]} 2. d4 {[%clk 0:03:00.8]} 2...
d5 {[%clk 0:03:02.8]} 3. e5 {[%clk 0:03:01.3]} 3... c5 {[%clk 0:03:03.4]} 4. c3
{[%clk 0:03:01.4]} 4... Nc6 {[%clk 0:03:03.4]} 5. Nf3 {[%clk 0:03:02.4]} 5...
Bg4 {[%clk 0:03:04]} 6. Be2 {[%clk 0:02:54.9]} 6... e6 {[%clk 0:02:49.1]} 7. h4
{[%clk 0:02:25.8]} 7... Qb6 {[%clk 0:02:43.6]} 8. Be3 {[%clk 0:01:38.5]} 8... f6
{[%clk 0:01:17.4]} 9. Na3 {[%clk 0:01:21.6]} 9... Bxf3 {[%clk 0:01:04.8]} 10.
Bxf3 {[%clk 0:01:21]} 10... Qxb2 {[%clk 0:00:53.7]} 11. Qc2 {[%clk 0:00:57.3]}
11... Qxa3 {[%clk 0:00:43.9]} 12. Bh5+ {[%clk 0:00:43.1]} 12... g6 {[%clk
0:00:34.2]} 13. Bxg6+ {[%clk 0:00:34.6]} 13... hxg6 {[%clk 0:00:34.6]} 14. Qxg6+
{[%clk 0:00:36.5]} 14... Kd7 {[%clk 0:00:35.8]} 15. exf6 {[%clk 0:00:27.3]}
15... Qxc3+ {[%clk 0:00:32.9]} 16. Ke2 {[%clk 0:00:28]} 16... cxd4 {[%clk
0:00:09.8]} 17. Qf7+ {[%clk 0:00:19.9]} 17... Nge7 {[%clk 0:00:08.5]} 18. fxe7
{[%clk 0:00:17.5]} 18... Bxe7 {[%clk 0:00:07.9]} 19. Rhc1 {[%clk 0:00:15.3]}
19... Qb2+ {[%clk 0:00:08.9]} 20. Bd2 {[%clk 0:00:15.9]} 20... d3+ {[%clk
0:00:08.2]} 21. Kd1 {[%clk 0:00:12.9]} 21... Rxh4 {[%clk 0:00:07.2]} 22. Rxc6
{[%clk 0:00:03.9]} 22... Rh1+ {[%clk 0:00:06.8]} 23. Be1 {[%clk 0:00:05.2]}
23... Qe2+ {[%clk 0:00:05.9]} 24. Kc1 {[%clk 0:00:06.4]} 24... Rxe1# {[%clk
0:00:06.9]} 0-1

[Event "*** Qualifier 3: Titled Tuesday 3|2 Blitz"]
[Site "Chess.com"]
[Date "2017.04.18"]
[Round "8"]
[White "MateusViageiro"]
[Black "the_drake"]
[Result "1/2-1/2"]
[WhiteElo "2298"]
[BlackElo "2196"]
[TimeControl "180+2"]
[EndTime "14:46:39 PDT"]
[Termination "Game drawn by repetition"]

1. d4 {[%clk 0:03:02]} 1... d5 {[%clk 0:02:54.2]} 2. Nf3 {[%clk 0:03:03]} 2...
Nf6 {[%clk 0:02:54.2]} 3. e3 {[%clk 0:03:03.7]} 3... c6 {[%clk 0:02:51.4]} 4. c4
{[%clk 0:03:04.6]} 4... dxc4 {[%clk 0:02:49.8]} 5. Bxc4 {[%clk 0:03:04.5]} 5...
b5 {[%clk 0:02:50.9]} 6. Bb3 {[%clk 0:03:04.2]} 6... e6 {[%clk 0:02:50.6]} 7.
O-O {[%clk 0:03:03.6]} 7... Nbd7 {[%clk 0:02:49.2]} 8. a4 {[%clk 0:03:04.1]}
8... Bb7 {[%clk 0:02:46.9]} 9. Qe2 {[%clk 0:03:03.6]} 9... a6 {[%clk 0:02:04]}
10. Rd1 {[%clk 0:03:00.1]} 10... Be7 {[%clk 0:02:01.9]} 11. e4 {[%clk
0:02:59.4]} 11... O-O {[%clk 0:01:58.4]} 12. Nc3 {[%clk 0:02:59.6]} 12... Qb6
{[%clk 0:01:56.7]} 13. Be3 {[%clk 0:02:44.3]} 13... c5 {[%clk 0:01:49.6]} 14.
axb5 {[%clk 0:02:36.8]} 14... axb5 {[%clk 0:01:33.5]} 15. e5 {[%clk 0:02:27.5]}
15... Bxf3 {[%clk 0:01:26]} 16. gxf3 {[%clk 0:02:03]} 16... Rxa1 {[%clk
0:01:25.5]} 17. Rxa1 {[%clk 0:01:54.7]} 17... Nd5 {[%clk 0:01:25]} 18. Bxd5
{[%clk 0:01:53]} 18... exd5 {[%clk 0:01:24.1]} 19. Nxd5 {[%clk 0:01:53.1]} 19...
Qg6+ {[%clk 0:01:25.4]} 20. Kh1 {[%clk 0:01:50.5]} 20... Qe6 {[%clk 0:01:04.6]}
21. Nxe7+ {[%clk 0:01:42.7]} 21... Qxe7 {[%clk 0:01:03.1]} 22. Qxb5 {[%clk
0:01:43.2]} 22... cxd4 {[%clk 0:01:00.9]} 23. Bxd4 {[%clk 0:01:42.3]} 23... Qe6
{[%clk 0:01:01.4]} 24. Ra7 {[%clk 0:01:37.1]} 24... Nb8 {[%clk 0:00:54.6]} 25.
Ra8 {[%clk 0:01:30.7]} 25... Qf5 {[%clk 0:00:44]} 26. Qb7 {[%clk 0:01:15]} 26...
Qb1+ {[%clk 0:00:42.8]} 27. Kg2 {[%clk 0:01:14.9]} 27... Qg6+ {[%clk 0:00:42.7]}
28. Kf1 {[%clk 0:01:13.6]} 28... Qd3+ {[%clk 0:00:37.9]} 29. Kg2 {[%clk
0:01:14.2]} 29... Qg6+ {[%clk 0:00:33.6]} 30. Kh3 {[%clk 0:01:14.7]} 30... Qf5+
{[%clk 0:00:24.6]} 31. Kg2 {[%clk 0:01:15.5]} 31... Qg6+ {[%clk 0:00:24.9]} 32.
Kf1 {[%clk 0:01:16.3]} 32... Qd3+ {[%clk 0:00:25.3]} 33. Kg2 {[%clk 0:01:11.2]}
33... Qg6+ {[%clk 0:00:25]} 1/2-1/2

[Event "*** Qualifier 3: Titled Tuesday 3|2 Blitz"]
[Site "Chess.com"]
[Date "2017.04.18"]
[Round "8"]
[White "GMSAGOR"]
[Black "NMJeevanK"]
[Result "0-1"]
[WhiteElo "2073"]
[BlackElo "2231"]
[TimeControl "180+2"]
[EndTime "14:46:47 PDT"]
[Termination "NMJeevanK won by checkmate"]

1. e4 {[%clk 0:03:02]} 1... e5 {[%clk 0:03:01]} 2. Nf3 {[%clk 0:03:01.6]} 2...
Nc6 {[%clk 0:03:02.5]} 3. d4 {[%clk 0:03:03.2]} 3... exd4 {[%clk 0:03:03.6]} 4.
Nxd4 {[%clk 0:03:05.1]} 4... Bc5 {[%clk 0:03:04.2]} 5. Nxc6 {[%clk 0:03:04.4]}
5... Qf6 {[%clk 0:03:05.4]} 6. Qf3 {[%clk 0:03:05.2]} 6... dxc6 {[%clk
0:03:05.9]} 7. Nc3 {[%clk 0:03:05.6]} 7... Qe7 {[%clk 0:03:06.7]} 8. Bd3 {[%clk
0:03:04.8]} 8... Nf6 {[%clk 0:03:07.8]} 9. h3 {[%clk 0:03:05.2]} 9... h6 {[%clk
0:03:08.8]} 10. Bf4 {[%clk 0:03:06.2]} 10... Be6 {[%clk 0:03:09.2]} 11. O-O-O
{[%clk 0:03:07.2]} 11... O-O-O {[%clk 0:03:10.1]} 12. Kb1 {[%clk 0:03:06.1]}
12... Bd4 {[%clk 0:03:05.9]} 13. Ne2 {[%clk 0:03:06.4]} 13... Rhe8 {[%clk
0:02:57.2]} 14. Nxd4 {[%clk 0:03:06.3]} 14... Rxd4 {[%clk 0:02:57.7]} 15. b3
{[%clk 0:03:07.7]} 15... Red8 {[%clk 0:02:47]} 16. Be5 {[%clk 0:03:08.1]} 16...
Rb4 {[%clk 0:02:46]} 17. Bxf6 {[%clk 0:03:08]} 17... gxf6 {[%clk 0:02:46.2]} 18.
Qe3 {[%clk 0:03:08.5]} 18... c5 {[%clk 0:02:42.7]} 19. Qxh6 {[%clk 0:03:04.8]}
19... c4 {[%clk 0:02:39]} 20. Be2 {[%clk 0:03:01.4]} 20... cxb3 {[%clk
0:02:40.2]} 21. axb3 {[%clk 0:02:55.8]} 21... Rg8 {[%clk 0:02:08.2]} 22. Qe3
{[%clk 0:02:44.9]} 22... Rb6 {[%clk 0:02:02.6]} 23. g3 {[%clk 0:02:45]} 23...
Qa3 {[%clk 0:01:59.1]} 24. Rd3 {[%clk 0:02:45.5]} 24... Ra6 {[%clk 0:01:56.6]}
25. Qd4 {[%clk 0:02:40.6]} 25... Qa2+ {[%clk 0:01:57.4]} 26. Kc1 {[%clk
0:02:41.3]} 26... Qa1+ {[%clk 0:01:57.1]} 27. Kd2 {[%clk 0:02:42.8]} 27... Qxh1
{[%clk 0:01:57.9]} 28. Qxf6 {[%clk 0:02:35.1]} 28... Qxh3 {[%clk 0:01:44.2]} 29.
f4 {[%clk 0:02:15.6]} 29... Qh8 {[%clk 0:01:36]} 30. Qe7 {[%clk 0:02:13.9]}
30... Re8 {[%clk 0:01:14.7]} 31. Qc5 {[%clk 0:02:12.3]} 31... Rd8 {[%clk
0:01:14]} 32. f5 {[%clk 0:02:13.1]} 32... Qh6+ {[%clk 0:01:11.3]} 33. Qe3 {[%clk
0:02:04.2]} 33... Rxd3+ {[%clk 0:01:04.2]} 34. Bxd3 {[%clk 0:02:04.5]} 34...
Qh2+ {[%clk 0:00:51.1]} 35. Kc3 {[%clk 0:02:03.9]} 35... Rc6+ {[%clk 0:00:50.8]}
36. Kb2 {[%clk 0:02:05.4]} 36... Qh8+ {[%clk 0:00:51.5]} 37. Kc1 {[%clk
0:02:05.6]} 37... Bxb3 {[%clk 0:00:49.3]} 38. e5 {[%clk 0:02:05.2]} 38... Kb8
{[%clk 0:00:39.2]} 39. Be4 {[%clk 0:02:02]} 39... Qxe5 {[%clk 0:00:28.2]} 40.
Qg5 {[%clk 0:01:56.8]} 40... Qa1+ {[%clk 0:00:22.4]} 41. Kd2 {[%clk 0:01:56.6]}
41... Qd4+ {[%clk 0:00:24]} 42. Kc1 {[%clk 0:01:56.5]} 42... f6 {[%clk
0:00:13.8]} 43. Qg7 {[%clk 0:01:50.1]} 43... Qe3+ {[%clk 0:00:14.6]} 44. Kb1
{[%clk 0:01:44.8]} 44... Bxc2+ {[%clk 0:00:15.1]} 45. Bxc2 {[%clk 0:01:45.5]}
45... Rb6+ {[%clk 0:00:16.6]} 46. Ka2 {[%clk 0:01:43.5]} 46... a6 {[%clk
0:00:17]} 47. Qg8+ {[%clk 0:01:39.6]} 47... Ka7 {[%clk 0:00:18.3]} 48. Qc4
{[%clk 0:01:41.5]} 48... Qe5 {[%clk 0:00:18.5]} 49. g4 {[%clk 0:01:41.7]} 49...
Qb2# {[%clk 0:00:19.5]} 0-1

[Event "*** Qualifier 3: Titled Tuesday 3|2 Blitz"]
[Site "Chess.com"]
[Date "2017.04.18"]
[Round "8"]
[White "JusticeBot"]
[Black "kikydu96"]
[Result "1-0"]
[WhiteElo "2524"]
[BlackElo "2359"]
[TimeControl "180+2"]
[EndTime "14:46:56 PDT"]
[Termination "JusticeBot won by resignation"]

1. e4 {[%clk 0:03:02]} 1... c5 {[%clk 0:03:00.1]} 2. c3 {[%clk 0:03:03.3]} 2...
Nf6 {[%clk 0:02:58.9]} 3. e5 {[%clk 0:03:04.8]} 3... Nd5 {[%clk 0:03:00]} 4. d4
{[%clk 0:03:06.7]} 4... cxd4 {[%clk 0:02:59.2]} 5. Nf3 {[%clk 0:03:08.6]} 5...
Nc6 {[%clk 0:02:59]} 6. Bc4 {[%clk 0:03:10.2]} 6... Nb6 {[%clk 0:02:57.5]} 7.
Bb3 {[%clk 0:03:11.9]} 7... d5 {[%clk 0:02:56.7]} 8. exd6 {[%clk 0:03:13.8]}
8... e6 {[%clk 0:02:53.2]} 9. cxd4 {[%clk 0:03:07]} 9... Bxd6 {[%clk 0:02:53.8]}
10. Nc3 {[%clk 0:03:07.3]} 10... h6 {[%clk 0:02:52.6]} 11. O-O {[%clk
0:03:08.5]} 11... O-O {[%clk 0:02:52.9]} 12. Qe2 {[%clk 0:03:10]} 12... Bd7
{[%clk 0:02:19.7]} 13. Bc2 {[%clk 0:03:08]} 13... Nb4 {[%clk 0:02:09.8]} 14. Bb1
{[%clk 0:03:04.9]} 14... N4d5 {[%clk 0:02:05.7]} 15. Qd3 {[%clk 0:03:03]} 15...
f5 {[%clk 0:01:57.5]} 16. Re1 {[%clk 0:02:59.7]} 16... Qf6 {[%clk 0:01:55.9]}
17. Ne5 {[%clk 0:02:59.9]} 17... Be8 {[%clk 0:01:51.3]} 18. Bd2 {[%clk 0:02:38]}
18... Rc8 {[%clk 0:01:50.4]} 19. a4 {[%clk 0:02:35.1]} 19... Nb4 {[%clk
0:01:46.2]} 20. Qe2 {[%clk 0:02:30.3]} 20... Bxe5 {[%clk 0:01:25.5]} 21. dxe5
{[%clk 0:02:24.7]} 21... Qe7 {[%clk 0:01:24]} 22. Nb5 {[%clk 0:02:25.5]} 22...
Bxb5 {[%clk 0:01:19.2]} 23. axb5 {[%clk 0:02:24]} 23... Nc2 {[%clk 0:01:16.3]}
24. Bxc2 {[%clk 0:01:29]} 24... Rxc2 {[%clk 0:01:18.2]} 25. Bb4 {[%clk
0:01:17.8]} 25... Rxe2 {[%clk 0:01:06.9]} 26. Bxe7 {[%clk 0:01:18.6]} 26...
Rxe1+ {[%clk 0:01:06.6]} 27. Rxe1 {[%clk 0:01:20.5]} 27... Rc8 {[%clk
0:01:06.3]} 28. Ra1 {[%clk 0:01:18.4]} 28... Nd5 {[%clk 0:00:50.5]} 29. Bd6
{[%clk 0:01:17.4]} 29... Rc2 {[%clk 0:00:48.5]} 30. b4 {[%clk 0:01:13.2]} 30...
Nc3 {[%clk 0:00:44.9]} 31. b6 {[%clk 0:01:02.7]} 31... a6 {[%clk 0:00:37.5]} 32.
f3 {[%clk 0:01:04]} 32... Kf7 {[%clk 0:00:28.5]} 33. Rxa6 {[%clk 0:01:02.3]}
33... Ne2+ {[%clk 0:00:05.9]} 34. Kf1 {[%clk 0:01:01.7]} 34... Nd4 {[%clk
0:00:02.3]} 35. Ra7 {[%clk 0:01:02.7]} 35... Kg6 {[%clk 0:00:03.2]} 36. Rxb7
{[%clk 0:01:03.6]} 36... Rc1+ {[%clk 0:00:04.2]} 37. Kf2 {[%clk 0:01:04.4]}
37... f4 {[%clk 0:00:05.4]} 38. Rc7 {[%clk 0:01:02.5]} 38... Rb1 {[%clk
0:00:04]} 39. b7 {[%clk 0:01:03.9]} 39... Rb2+ {[%clk 0:00:05.1]} 40. Ke1 {[%clk
0:01:05.3]} 40... Rxg2 {[%clk 0:00:04.7]} 41. b8=Q {[%clk 0:01:06.3]} 41... Nc2+
{[%clk 0:00:06.1]} 42. Rxc2 {[%clk 0:01:04.1]} 1-0

[Event "*** Qualifier 3: Titled Tuesday 3|2 Blitz"]
[Site "Chess.com"]
[Date "2017.04.18"]
[Round "8"]
[White "SabinaFoisor"]
[Black "Sanan_Sjugirov"]
[Result "1-0"]
[WhiteElo "2273"]
[BlackElo "2623"]
[TimeControl "180+2"]
[EndTime "14:47:00 PDT"]
[Termination "SabinaFoisor won by resignation"]

1. d4 {[%clk 0:03:02]} 1... Nf6 {[%clk 0:03:00.1]} 2. Nf3 {[%clk 0:03:01.2]}
2... e6 {[%clk 0:03:01.5]} 3. c4 {[%clk 0:03:00.3]} 3... b6 {[%clk 0:03:01.5]}
4. e3 {[%clk 0:02:58.7]} 4... Bb7 {[%clk 0:03:00.4]} 5. Bd3 {[%clk 0:02:58.4]}
5... d5 {[%clk 0:03:01.4]} 6. O-O {[%clk 0:02:57.8]} 6... Be7 {[%clk 0:02:55.9]}
7. b3 {[%clk 0:02:53.6]} 7... O-O {[%clk 0:02:56.4]} 8. Bb2 {[%clk 0:02:53.7]}
8... Nbd7 {[%clk 0:02:56.5]} 9. Nc3 {[%clk 0:02:53.4]} 9... c5 {[%clk
0:02:48.4]} 10. cxd5 {[%clk 0:02:51.1]} 10... exd5 {[%clk 0:02:41]} 11. Rc1
{[%clk 0:02:46.7]} 11... a6 {[%clk 0:02:40.7]} 12. Qe2 {[%clk 0:02:41.2]} 12...
Re8 {[%clk 0:02:40.5]} 13. Rfd1 {[%clk 0:02:40.7]} 13... Bd6 {[%clk 0:02:39]}
14. Qf1 {[%clk 0:02:40.7]} 14... Qe7 {[%clk 0:02:38]} 15. Ne2 {[%clk 0:02:30.9]}
15... g6 {[%clk 0:02:15.8]} 16. Ng3 {[%clk 0:02:25.6]} 16... Ne4 {[%clk
0:02:09.5]} 17. dxc5 {[%clk 0:02:11.5]} 17... Ndxc5 {[%clk 0:02:08.1]} 18. Be2
{[%clk 0:02:05]} 18... h5 {[%clk 0:01:56.8]} 19. Nxe4 {[%clk 0:02:01.9]} 19...
dxe4 {[%clk 0:01:56.4]} 20. Nd4 {[%clk 0:01:55.4]} 20... h4 {[%clk 0:01:44.7]}
21. g3 {[%clk 0:01:54.7]} 21... Nd3 {[%clk 0:01:32.6]} 22. Bxd3 {[%clk
0:01:42.5]} 22... exd3 {[%clk 0:01:34.5]} 23. Qxd3 {[%clk 0:01:41.4]} 23... hxg3
{[%clk 0:01:08.3]} 24. hxg3 {[%clk 0:01:40.2]} 24... Bc5 {[%clk 0:00:46.8]} 25.
b4 {[%clk 0:01:24.4]} 25... Be4 {[%clk 0:00:39.5]} 26. Qf1 {[%clk 0:01:09.9]}
26... Bxd4 {[%clk 0:00:30.8]} 27. Rxd4 {[%clk 0:01:07.1]} 27... Qe6 {[%clk
0:00:23.8]} 28. Rcc4 {[%clk 0:00:52.1]} 28... Qf5 {[%clk 0:00:22.4]} 29. Qe2
{[%clk 0:00:31.5]} 29... Rad8 {[%clk 0:00:18.7]} 30. g4 {[%clk 0:00:26.3]} 30...
Qb5 {[%clk 0:00:09.7]} 31. a4 {[%clk 0:00:21.4]} 31... Qxa4 {[%clk 0:00:03.4]}
32. Rxe4 {[%clk 0:00:22.6]} 32... Rxe4 {[%clk 0:00:03.6]} 33. Rxe4 {[%clk
0:00:24.5]} 1-0